bitfinex-derivatives/quotes_SOLF0:USTF0_20240904
["timestamp","ask_amount","ask_price","bid_price","bid_amount"]
[1725464740151,0.04945144,132.85,132.83,0.0580977]
[1725464740359,3.76686515,132.85,132.77,3.6455]
[1725464740560,3.7638,132.84,132.83,0.05518535]
[1725464740760,3.7638,132.84,132.78,3.7654]
[1725464741057,3.81774327,132.89,132.82,0.04777095]
[1725464741252,3.81774327,132.89,132.77,3.6455]
[1725464741253,0.05537773,132.87,132.84,0.05778746]
[1725464741450,3.73793378,132.87,132.84,0.05778746]
[1725464741653,3.7642,132.83,132.77,3.6455]
[1725464741958,3.68206828,132.87,132.77,26.02]
[1725464742159,26.02,132.92,132.82,3.7642]
[1725464742454,26.02,132.92,132.79,26.02]
[1725464742660,29.86139607,132.92,132.79,26.02]
[1725464742854,0.05533689,132.87,132.84,0.04822784]
[1725464743056,0.05533689,132.87,132.81,26.02]
[1725464743261,0.05533689,132.87,132.81,29.78120227]
[1725464743457,0.05533689,132.87,132.84,0.05240431]
[1725464745557,3.7634,132.85,132.84,0.05240431]
[1725464745856,3.72947733,132.85,132.76,1.8214]
[1725464746052,3.7647,132.81,132.75,1.902]
[1725464746247,3.82926645,132.8,132.75,1.902]
[1725464746453,26.02,132.86,132.75,1.902]
[1725464746959,26.02,132.84,132.75,1.902]
[1725464747260,3.7647,132.81,132.79,0.05039641]
[1725464747458,0.05478923,132.82,132.79,0.05039641]
[1725464747860,3.7647,132.81,132.79,0.05039641]
[1725464748052,0.05478923,132.82,132.79,0.05039641]
[1725464749173,3.7648,132.8,132.79,0.05039641]
[1725464749464,26.02,132.82,132.72,1.8214]
[1725464749664,27.4191,132.85,132.7,1.8716]
[1725464749665,26.02,132.77,132.7,1.8716]
[1725464749851,26.02,132.8,132.7,1.8716]
[1725464750259,26.02,132.77,132.64,1.8981]
[1725464750461,3.83615819,132.77,132.65,27.8916]
[1725464750757,0.04882969,132.72,132.71,3.7674]
[1725464750952,3.75668549,132.75,132.71,3.7674]
[1725464751149,0.04831733,132.73,132.71,3.7674]
[1725464751355,29.88026365,132.79,132.72,3.767]
[1725464751559,0.05680661,132.77,132.74,0.05197537]
[1725464752758,3.82250661,132.77,132.74,0.05197537]
[1725464753160,0.05680661,132.77,132.74,0.05197537]
[1725464754062,3.7662,132.75,132.74,0.05197537]
[1725464754257,0.05680661,132.77,132.74,0.05197537]
[1725464754454,3.82270661,132.77,132.74,0.05197537]
[1725464754654,0.05680661,132.77,132.74,0.05197537]
[1725464755164,26.07680661,132.77,132.74,0.05197537]
[1725464755464,26.02,132.77,132.65,1.8716]
[1725464755666,3.7662,132.76,132.65,27.8916]
[1725464755861,26.02,132.79,132.65,27.8916]
[1725464756055,29.70443706,132.79,132.65,27.8916]
[1725464756666,0.05277762,132.73,132.71,0.05225242]
[1725464756962,0.05277762,132.73,132.71,0.05148881]
[1725464756963,0.05104713,132.73,132.71,0.05148881]
[1725464758960,0.05104713,132.73,132.65,1.8716]
[1725464759150,3.82951462,132.73,132.65,1.8716]
[1725464759358,26.02,132.74,132.66,3.7686]
[1725464759557,3.75188423,132.74,132.65,5.61443991]
[1725464759762,26.02,132.76,132.65,1.8716]
[1725464760161,0.0482799,132.72,132.69,0.04882033]
[1725464760862,26.02,132.71,132.53,26.02]
[1725464761054,26.02,132.67,132.56,9.09055511]
[1725464761461,26.02,132.64,132.56,5.3089]
[1725464761660,29.83820922,132.64,132.56,5.3089]
[1725464761864,3.7705,132.6,132.59,0.04896655]
[1725464762368,3.7721,132.55,132.52,1.7465]
[1725464762567,26.02,132.61,132.52,1.7465]
[1725464762768,3.84533402,132.57,132.48,27.8394]
[1725464763066,26.02,132.56,132.48,1.8194]
[1725464763466,26.02,132.54,132.43,1.8135]
[1725464763761,0.05057551,132.53,132.51,0.05432752]
[1725464763954,3.7729,132.52,132.51,0.05432752]
[1725464764154,3.85815809,132.52,132.43,1.8135]
[1725464764470,0.04871838,132.53,132.43,1.8135]
[1725464764666,26.02,132.5,132.43,1.8135]
[1725464764856,26.02,132.55,132.46,0.0499957]
[1725464765160,0.0487563,132.48,132.43,5.5888]
[1725464765366,26.02,132.53,132.49,0.04896073]
[1725464765564,26.02,132.53,132.43,1.8135]
[1725464765565,26.02,132.5,132.43,1.8135]
[1725464765769,26.02,132.48,132.39,1.8704]
[1725464766060,29.86919595,132.53,132.42,0.05291823]
[1725464766061,26.02,132.46,132.42,0.05291823]
[1725464766261,0.05490342,132.45,132.42,0.05291823]
[1725464766465,3.7751,132.44,132.36,3.7771]
[1725464766663,0.05490342,132.45,132.42,0.05024792]
[1725464766867,227.0,132.5,132.42,0.05024792]
[1725464767060,227.0,132.5,132.36,26.02]
[1725464767061,0.05735702,132.45,132.36,26.02]
[1725464767262,0.05735702,132.45,132.39,26.02]
[1725464767462,29.86919595,132.53,132.39,26.02]
[1725464767463,0.40286104,132.52,132.4,1.9032]
[1725464767865,0.05692357,132.47,132.46,3.7745]
[1725464768060,340.0,132.57,132.41,27.7876]
[1725464768061,26.02,132.58,132.44,29.82917881]
[1725464768261,26.02,132.58,132.45,1.8023]
[1725464768465,0.40258158,132.57,132.45,1.8023]
[1725464768666,26.02,132.56,132.45,1.8023]
[1725464768863,29.72461931,132.56,132.45,1.8023]
[1725464769170,0.05637428,132.52,132.49,0.04778469]
[1725464770459,0.05637428,132.52,132.51,3.7731]
[1725464770958,0.05637428,132.52,132.49,0.04778469]
[1725464771569,0.05637428,132.52,132.49,3.82138469]
[1725464771965,0.05637428,132.52,132.5,3.7733]
[1725464772375,0.05637428,132.52,132.49,0.04778469]
[1725464773664,0.05637428,132.52,132.51,3.7731]
[1725464774069,227.0,132.59,132.47,26.02]
[1725464774268,26.02,132.6,132.47,26.02]
[1725464775072,0.05261632,132.55,132.52,0.05634566]
[1725464775277,3.74434419,132.55,132.52,0.05125989]
[1725464775568,3.74688797,132.63,132.52,0.05125989]
[1725464775873,26.02,132.64,132.52,26.02]
[1725464776270,3.7702,132.61,132.57,3.7712]
[1725464776676,3.7708,132.59,132.58,0.05330387]
[1725464776973,26.02,132.59,132.57,0.05505999]
[1725464777171,3.90196923,132.59,132.57,0.05493089]
[1725464777366,0.05526382,132.59,132.57,0.05493089]
[1725464777771,0.05526382,132.59,132.58,3.7711]
[1725464778073,0.05526382,132.59,132.57,0.05493089]
[1725464778281,0.05526382,132.59,132.58,3.7711]
[1725464778761,0.05526382,132.59,132.57,0.05493089]
[1725464779566,0.05526382,132.59,132.58,3.7711]
[1725464779774,26.02,132.67,132.57,0.05493089]
[1725464779970,26.02,132.67,132.52,26.02]
[1725464780169,26.02,132.64,132.51,1.82]
[1725464780367,26.02,132.61,132.51,1.82]
[1725464780571,3.7716,132.57,132.53,3.7725]
[1725464780772,0.05285193,132.56,132.54,0.05259111]
[1725464781072,3.7697,132.63,132.59,3.7707]
[1725464781275,3.82610335,132.63,132.55,3.81112284]
[1725464781576,26.02,132.67,132.54,26.02]
[1725464781772,3.7695,132.64,132.6,3.7703]
[1725464782070,0.05305467,132.63,132.61,0.05151562]
[1725464782275,3.7701,132.62,132.61,0.04769344]
[1725464782971,3.7707,132.6,132.52,3.69370049]
[1725464783175,3.86193889,132.59,132.52,5.52570049]
[1725464783370,3.7706,132.6,132.52,5.6030298]
[1725464783674,3.68049792,132.6,132.52,1.832]
[1725464783870,0.05459056,132.57,132.55,0.04856778]
[1725464784072,0.05307716,132.57,132.55,0.04856778]
[1725464784467,0.05307716,132.57,132.56,3.7716]
[1725464784665,26.02,132.62,132.55,0.04856778]
[1725464785180,26.02,132.64,132.55,0.04856778]
[1725464785382,29.88024926,132.64,132.53,3.69879253]
[1725464785672,0.05215581,132.6,132.57,0.05649713]
[1725464786076,3.86024926,132.64,132.62,3.7699]
[1725464786269,26.02,132.67,132.58,1.8646]
[1725464786472,29.84516637,132.67,132.58,1.8646]
[1725464787274,26.07019706,132.64,132.61,0.05317078]
[1725464787683,29.87008866,132.64,132.61,0.05317078]
[1725464788473,29.7899,132.62,132.61,0.05317078]
[1725464789578,26.02,132.62,132.54,3.7722]
[1725464790176,26.02,132.62,132.53,1.8715]
[1725464790476,0.05584577,132.59,132.56,0.05636114]
[1725464790785,26.02,132.57,132.38,233.5533]
[1725464790986,3.7716,132.56,132.55,523.30861]
[1725464791173,7.4833157,132.56,132.55,523.30861]
[1725464791377,1.4145,132.6,132.55,523.30861]
[1725464791572,1.3045,132.63,132.55,523.30861]
[1725464791875,0.05565511,132.6,132.58,0.05623575]
[1725464792690,0.05565511,132.6,132.59,3.7708]
[1725464792986,0.05565511,132.6,132.58,0.05623575]
[1725464793993,26.02,132.68,132.58,0.05623575]
[1725464794183,26.02,132.68,132.56,5.5294]
[1725464794389,26.02,132.63,132.56,5.5294]
[1725464794688,29.88352429,132.63,132.55,523.30861]
[1725464795193,29.88352429,132.63,132.58,0.0561127]
[1725464795194,3.82096218,132.6,132.58,0.0561127]
[1725464795490,26.07036218,132.6,132.58,0.0561127]
[1725464795685,3.7708,132.59,132.58,0.0561127]
[1725464796586,26.07036218,132.6,132.55,523.30861]
[1725464796786,26.02,132.57,132.55,523.30861]
[1725464797090,3.7716,132.56,132.55,523.30861]
[1725464797393,7.56044859,132.56,132.55,523.30861]
[1725464797582,3.7716,132.56,132.55,523.30861]
[1725464797886,3.7716,132.56,132.55,331.55722387]
[1725464798280,7.53037571,132.56,132.55,331.55722387]
[1725464798686,29.84167706,132.57,132.55,331.55722387]
[1725464798992,0.05017706,132.57,132.55,331.55722387]
[1725464799182,0.05017706,132.57,132.56,3.7716]
[1725464799386,26.02,132.65,132.55,333.34362387]
[1725464799583,26.6248,132.67,132.58,3.7709]
[1725464799790,26.6248,132.67,132.56,1.8228]
[1725464799984,26.6248,132.67,132.55,335.10072387]
[1725464799985,26.02,132.62,132.55,331.55722387]
[1725464800185,26.02,132.59,132.55,331.55722387]
[1725464800486,3.7716,132.56,132.55,326.65667643]
[1725464800886,7.47603742,132.56,132.55,155.78667643]
[1725464802596,0.05160344,132.58,132.55,155.78667643]
[1725464802795,3.84584998,132.58,132.55,155.78667643]
[1725464803094,3.7716,132.56,132.55,155.78667643]
[1725464804091,3.7715,132.57,132.55,155.78667643]
[1725464804390,3.84584998,132.58,132.55,155.78667643]
[1725464804796,0.05160344,132.58,132.55,155.78667643]
[1725464805092,3.75273813,132.57,132.55,155.78667643]
[1725464805294,0.05160344,132.58,132.55,155.78667643]
[1725464805794,3.74934198,132.57,132.54,0.05171643]
[1725464806096,0.05160344,132.58,132.54,0.05171643]
[1725464807285,3.7714,132.57,132.54,0.05171643]
[1725464807495,0.05160344,132.58,132.54,0.05171643]
[1725464807796,3.77754502,132.58,132.54,0.05171643]
[1725464808091,3.7714,132.57,132.54,0.05171643]
[1725464808291,3.81528371,132.58,132.54,0.05171643]
[1725464808499,10.27913104,132.78,132.55,26.02]
[1725464808798,26.02,132.69,132.56,3.516]
[1725464808991,3.7695,132.64,132.6,3.7705]
[1725464809192,3.68593856,132.63,132.56,3.516]
[1725464809498,0.0484145,132.61,132.59,3.7705]
[1725464809796,0.0484145,132.61,132.58,0.05522379]
[1725464810194,3.7707,132.6,132.58,0.05522379]
[1725464810398,0.0484145,132.61,132.58,0.05522379]
[1725464811799,0.0484145,132.61,132.59,3.7706]
[1725464812099,0.0484145,132.61,132.58,0.05522379]
[1725464812998,0.0484145,132.61,132.59,3.7706]
[1725464813490,0.0484145,132.61,132.58,0.05522379]
[1725464813903,3.7708,132.59,132.58,0.05522379]
[1725464814896,26.0684145,132.61,132.58,0.05522379]
[1725464814897,3.7707,132.6,132.58,0.05522379]
[1725464815102,26.0684145,132.61,132.58,0.05522379]
[1725464815496,3.7708,132.6,132.58,0.05522379]
[1725464815702,26.0684145,132.61,132.58,0.05522379]
[1725464816408,0.0484145,132.61,132.58,0.05522379]
[1725464816811,0.0484145,132.61,132.6,3.7705]
[1725464817204,0.0484145,132.61,132.59,5.412]
[1725464817205,0.40114064,132.68,132.63,3.7696]
[1725464817407,230.74783259,132.7,132.59,5.412]
[1725464817598,0.40102813,132.69,132.59,5.412]
[1725464817997,29.72276058,132.69,132.59,5.412]
[1725464818203,0.04153964,132.65,132.63,0.05227164]
[1725464819705,3.81073964,132.65,132.63,0.05227164]
[1725464821006,0.04153964,132.65,132.63,0.05227164]
[1725464822105,0.04153964,132.65,132.64,3.7694]
[1725464822314,0.04153964,132.65,132.63,0.05227164]
[1725464822515,3.70276058,132.69,132.63,0.05227164]
[1725464822701,3.7677,132.7,132.66,3.7688]
[1725464822910,651.93910027,132.79,132.61,26.02]
[1725464822911,3.73642124,132.71,132.61,26.02]
[1725464823100,644.40850027,132.79,132.64,26.02]
[1725464823101,26.02,132.78,132.64,26.02]
[1725464823315,0.40073635,132.77,132.69,3.7678]
[1725464823511,0.40073635,132.77,132.64,26.02]
[1725464823710,0.40073635,132.77,132.69,0.05417914]
[1725464823906,0.40073635,132.77,132.72,0.05367937]
[1725464824216,26.02,132.78,132.72,0.05367937]
[1725464824806,0.79834844,132.77,132.72,0.05367937]
[1725464825013,0.39915905,132.77,132.73,0.05015171]
[1725464825519,3.69836354,132.76,132.73,0.05015171]
[1725464826019,0.39915905,132.77,132.73,0.05015171]
[1725464828417,3.7665,132.74,132.73,0.05015171]
[1725464828812,4.16837811,132.77,132.73,0.05015171]
[1725464829328,0.39915905,132.77,132.73,0.05015171]
[1725464830113,0.39915905,132.77,132.74,3.7663]
[1725464830311,0.39915905,132.77,132.73,0.05015171]
[1725464830909,26.02,132.87,132.73,0.05015171]
[1725464831110,0.39988299,132.86,132.79,0.05144729]
[1725464831312,3.7643,132.82,132.81,0.0492714]
[1725464831521,3.82582884,132.82,132.8,0.05120522]
[1725464831819,26.02,132.87,132.8,0.05741067]
[1725464832016,26.02,132.84,132.8,0.05741067]
[1725464832218,3.7643,132.82,132.81,0.05424543]
[1725464832419,3.82394494,132.84,132.8,0.05400014]
[1725464832617,26.0954,132.89,132.81,0.05805112]
[1725464832809,26.02,132.87,132.84,0.04932168]
[1725464833012,26.02,132.85,132.74,3.6259]
[1725464833215,26.02,132.82,132.74,3.6259]
[1725464833520,29.70758002,132.82,132.74,3.6259]
[1725464833716,3.68758002,132.82,132.74,3.6259]
[1725464833916,26.02,132.85,132.74,3.6259]
[1725464834112,0.05532788,132.81,132.78,0.05640684]
[1725464834316,3.88638911,132.81,132.78,0.05640684]
[1725464835218,3.7651,132.79,132.78,0.05640684]
[1725464835913,3.7651,132.79,132.64,26.02]
[1725464836115,3.7673,132.72,132.67,1.7865]
[1725464836314,3.80446253,132.73,132.67,1.7865]
[1725464836614,26.02,132.78,132.67,1.7865]
[1725464837118,0.05270603,132.74,132.71,0.0543573]
[1725464837316,0.05127507,132.74,132.72,3.7669]
[1725464837518,3.83106123,132.81,132.71,3.78232901]
[1725464837722,227.0,132.83,132.72,1.8807]
[1725464837915,230.75961103,132.83,132.75,3.7661]
[1725464838110,3.75961103,132.83,132.75,3.7661]
[1725464838319,0.90613951,132.84,132.73,1.8427]
[1725464838519,0.0578104,132.8,132.77,0.05211705]
[1725464838821,3.82081356,132.8,132.77,0.05211705]
[1725464839013,0.0578104,132.8,132.77,0.05211705]
[1725464839412,3.8023453,132.8,132.77,0.05211705]
[1725464840323,3.7654,132.78,132.77,0.05211705]
[1725464841514,3.8023453,132.8,132.77,0.05211705]
[1725464842122,3.7654,132.78,132.77,0.05211705]
[1725464842323,3.8023453,132.8,132.77,0.05211705]
[1725464842724,3.7653,132.79,132.77,0.05211705]
[1725464842923,3.8023453,132.8,132.77,0.05211705]
[1725464843315,3.7654,132.78,132.77,0.05211705]
[1725464845230,3.8023453,132.8,132.77,0.05211705]
[1725464846520,7.5673453,132.8,132.77,0.05211705]
[1725464846925,3.8023453,132.8,132.77,0.05211705]
[1725464847529,3.7654,132.78,132.77,0.05211705]
[1725464849021,3.8023453,132.8,132.77,0.05211705]
[1725464849432,0.0578104,132.8,132.77,0.05211705]
[1725464850028,0.0578104,132.8,132.79,3.7651]
[1725464850429,26.02,132.87,132.8,3.7647]
[1725464850631,26.02,132.87,132.78,3.5976]
[1725464850824,0.9553,132.9,132.78,3.5976]
[1725464850825,26.02,132.84,132.78,3.5976]
[1725464851028,29.70086774,132.84,132.78,3.5976]
[1725464851433,29.70086774,132.84,132.8,0.05515509]
[1725464852233,3.68086774,132.84,132.8,0.05515509]
[1725464852442,227.0,132.89,132.8,0.05515509]
[1725464852633,227.0,132.89,132.78,3.5976]
[1725464852634,0.9553,132.9,132.83,0.047596]
[1725464853631,3.763,132.87,132.83,0.047596]
[1725464854033,0.9553,132.9,132.83,0.047596]
[1725464854240,3.7633,132.86,132.83,0.047596]
[1725464854437,0.9553,132.9,132.83,0.047596]
[1725464854829,3.7635,132.85,132.83,0.047596]
[1725464855127,3.80509304,132.84,132.83,0.047596]
[1725464855333,3.84577714,132.84,132.83,0.047596]
[1725464855533,26.02,132.89,132.83,0.047596]
[1725464856343,3.7634,132.86,132.83,0.047596]
[1725464856543,26.02,132.89,132.83,0.047596]
[1725464856948,26.02,132.84,132.75,1.8976]
[1725464857144,29.7772502,132.84,132.75,1.8976]
[1725464857441,29.7772502,132.84,132.73,3.6]
[1725464857845,0.05060003,132.8,132.77,0.05676708]
[1725464858348,3.81560003,132.8,132.77,0.05676708]
[1725464858547,0.05060003,132.8,132.77,0.05676708]
[1725464859253,3.7572502,132.84,132.77,1.87266708]
[1725464859439,253.02,132.89,132.78,3.75527542]
[1725464859645,253.02,132.89,132.8,3.7647]
[1725464859840,26.02,132.89,132.77,1.8159]
[1725464860553,26.02,132.89,132.82,0.05131013]
[1725464860847,3.7633,132.86,132.82,3.81551013]
[1725464861050,26.02,132.89,132.82,0.05131013]
[1725464861251,0.9553,132.9,132.82,0.05131013]
[1725464861445,0.9553,132.9,132.79,26.02]
[1725464861446,0.9553,132.9,132.85,0.0566972]
[1725464862544,3.7627,132.88,132.85,0.0566972]
[1725464863245,26.02,132.92,132.85,0.0566972]
[1725464863650,26.02,132.89,132.85,0.0566972]
[1725464863849,3.7629,132.87,132.85,0.0566972]
[1725464864048,7.61145787,132.87,132.85,0.0566972]
[1725464864347,3.84855787,132.87,132.85,0.0566972]
[1725464864555,3.7631,132.86,132.85,0.0566972]
[1725464864751,26.02,132.89,132.79,3.765]
[1725464865051,26.02,132.87,132.78,1.7182]
[1725464865246,29.76425785,132.89,132.78,1.7182]
[1725464865441,26.02,132.89,132.79,1.8264]
[1725464865652,3.7633,132.86,132.79,1.8264]
[1725464865853,0.04873811,132.84,132.81,3.81786347]
[1725464866158,0.04873811,132.84,132.81,0.05336347]
[1725464866653,3.7643,132.82,132.81,0.05336347]
[1725464867856,0.04873811,132.84,132.81,0.05336347]
[1725464868756,26.02,132.84,132.73,1.8375]
[1725464869056,3.7651,132.8,132.73,1.8375]
[1725464869253,26.02,132.84,132.73,1.8375]
[1725464869457,4.28241771,132.86,132.74,3.74981331]
[1725464869760,4.28241771,132.86,132.79,0.05348651]
[1725464869761,0.05434539,132.81,132.79,0.05348651]
[1725464869960,0.04978497,132.81,132.79,0.05348651]
[1725464870160,0.04978497,132.81,132.8,3.7648]
[1725464870357,0.04978497,132.81,132.79,0.05348651]
[1725464870661,0.04978497,132.81,132.79,3.81838651]
[1725464871361,0.04978497,132.81,132.8,3.7648]
[1725464871555,0.04978497,132.81,132.79,0.05348651]
[1725464873153,0.04978497,132.81,132.79,3.81858651]
[1725464873460,3.81438497,132.81,132.79,0.05348651]
[1725464873659,0.04978497,132.81,132.79,0.05348651]
[1725464874059,0.36937785,132.83,132.73,1.8375]
[1725464874353,0.36937785,132.83,132.64,29.72603298]
[1725464874354,26.02,132.79,132.64,29.72603298]
[1725464874558,29.77386122,132.79,132.65,5.4956]
[1725464874754,0.36976497,132.78,132.69,3.7677]
[1725464874955,0.36976497,132.78,132.65,3.6192]
[1725464875163,0.05281032,132.73,132.7,0.05038214]
[1725464875360,0.05281032,132.73,132.7,0.05114082]
[1725464875563,3.81961032,132.73,132.7,0.05114082]
[1725464875866,0.05281032,132.73,132.7,0.05114082]
[1725464876060,3.7674,132.71,132.7,0.05114082]
[1725464876260,26.02,132.74,132.64,3.7691]
[1725464876460,26.02,132.74,132.63,1.7283]
[1725464876857,26.02,132.74,132.66,3.7688]
[1725464877058,3.7678,132.7,132.63,1.7283]
[1725464877256,0.05150621,132.68,132.65,0.05439202]
[1725464877460,0.05150621,132.68,132.65,3.82339202]
[1725464877665,3.83817508,132.67,132.65,0.05439202]
[1725464877964,3.8562619,132.67,132.66,3.7688]
[1725464878159,3.8562619,132.67,132.65,0.05439202]
[1725464878961,0.05150621,132.68,132.65,0.05439202]
[1725464879359,3.78143552,132.68,132.65,0.05439202]
[1725464880663,3.7688,132.66,132.65,0.05439202]
[1725464881060,3.7686,132.67,132.65,0.05439202]
[1725464881366,3.78143552,132.68,132.66,3.7687]
[1725464881564,3.78143552,132.68,132.65,0.05439202]
[1725464881766,0.7875,132.77,132.65,0.05439202]
[1725464881967,0.36989013,132.76,132.68,3.7681]
[1725464882167,4.18256967,132.76,132.68,3.7681]
[1725464882367,0.36989013,132.75,132.67,3.7684]
[1725464882568,3.81607261,132.75,132.65,3.5603]
[1725464882773,0.05340367,132.71,132.69,0.05224603]
[1725464883063,0.05440366,132.71,132.69,0.05224603]
[1725464883271,3.75284985,132.71,132.69,0.05224603]
[1725464883466,0.05440366,132.71,132.69,0.05224603]
[1725464883763,7.52912103,132.71,132.69,0.05224603]
[1725464884158,3.76152103,132.71,132.69,0.05224603]
[1725464885064,3.7677,132.7,132.69,0.05224603]
[1725464885263,3.76152103,132.71,132.69,0.05224603]
[1725464885466,3.7677,132.7,132.69,0.05224603]
[1725464885871,3.76152103,132.71,132.69,0.05224603]
[1725464886165,7.52912103,132.71,132.69,0.05224603]
[1725464887967,3.7677,132.7,132.69,0.05224603]
[1725464888371,7.52892103,132.71,132.69,0.05224603]
[1725464888572,3.76152103,132.71,132.69,0.05224603]
[1725464890170,3.7677,132.7,132.69,0.05224603]
[1725464890772,29.72711737,132.71,132.62,3.6281]
[1725464891172,0.37025206,132.7,132.62,3.6281]
[1725464891770,0.05238513,132.67,132.65,0.05634785]
[1725464892473,0.05238513,132.67,132.65,3.82534785]
[1725464892782,0.05238513,132.67,132.65,0.05634785]
[1725464892978,3.70711737,132.71,132.66,3.7688]
[1725464893173,26.02,132.76,132.66,3.7688]
[1725464893479,3.7676,132.71,132.67,3.7685]
[1725464893678,29.79781058,132.76,132.65,3.6009]
[1725464893976,3.7675,132.71,132.69,0.0561513]
[1725464894177,0.05245967,132.72,132.69,0.0561513]
[1725464895272,3.7677,132.7,132.69,0.0561513]
[1725464895481,0.05245967,132.72,132.69,0.0561513]
[1725464896374,0.05245967,132.72,132.7,3.7675]
[1725464897077,0.05245967,132.72,132.71,3.7674]
[1725464897272,0.05245967,132.72,132.69,0.0561513]
[1725464897996,3.7677,132.7,132.69,0.0561513]
[1725464898287,26.02,132.71,132.63,1.7782]
[1725464898882,29.76321924,132.71,132.63,1.7782]
[1725464899080,3.74321924,132.71,132.65,3.7691]
[1725464899285,26.02,132.73,132.63,1.7782]
[1725464899576,0.05565932,132.69,132.67,0.04829632]
[1725464900380,3.75027022,132.69,132.67,0.04829632]
[1725464900579,0.05565932,132.69,132.67,0.04829632]
[1725464900775,3.90099377,132.69,132.67,0.04829632]
[1725464901171,7.66899377,132.69,132.67,0.04829632]
[1725464902273,3.7682,132.68,132.67,0.04829632]
[1725464903177,7.66909377,132.69,132.67,0.04829632]
[1725464903481,3.71645582,132.72,132.67,0.04829632]
[1725464903776,3.80277107,132.72,132.67,1.7111]
[1725464903976,27.7154,132.79,132.68,3.768]
[1725464904184,26.02,132.77,132.68,3.768]
[1725464904378,26.02,132.77,132.67,1.7111]
[1725464904682,0.05313074,132.73,132.71,0.05727615]
[1725464904881,3.7671,132.72,132.71,0.05727615]
[1725464905078,7.50268453,132.72,132.71,0.05727615]
[1725464905479,3.73558453,132.72,132.71,0.05727615]
[1725464905677,3.82013074,132.73,132.71,0.05727615]
[1725464905987,3.7671,132.72,132.71,0.05727615]
[1725464906179,7.60293327,132.72,132.71,0.05727615]
[1725464906376,26.39110344,132.72,132.64,3.7691]
[1725464906577,3.768,132.69,132.63,3.477]
[1725464906883,3.70656516,132.72,132.63,3.477]
[1725464907083,26.02,132.74,132.66,3.7687]
[1725464907084,3.7677,132.7,132.66,3.7687]
[1725464907282,3.71561016,132.7,132.63,3.477]
[1725464907481,0.05045359,132.68,132.65,0.05580517]
[1725464907678,3.74990771,132.7,132.65,0.05290402]
[1725464907986,26.02,132.77,132.63,3.477]
[1725464908280,3.7678,132.7,132.66,3.7686]
[1725464908481,7.50866089,132.7,132.66,3.7686]
[1725464908680,0.05692092,132.69,132.67,0.05138168]
[1725464908887,3.82492092,132.69,132.67,0.05138168]
[1725464909283,3.7682,132.68,132.67,0.05138168]
[1725464910184,0.05692092,132.69,132.67,0.05138168]
[1725464910374,0.37097438,132.76,132.68,21.72]
[1725464910579,0.37097438,132.76,132.69,3.83736032]
[1725464910779,0.37097438,132.76,132.69,1.8067]
[1725464910985,0.37097438,132.76,132.7,27.23868284]
[1725464911482,0.05678594,132.74,132.73,3.7667]
[1725464912085,0.05678594,132.74,132.72,0.05649703]
[1725464912683,3.7668,132.73,132.72,0.05649703]
[1725464913387,0.05678594,132.74,132.72,0.05649703]
[1725464913587,0.05678594,132.74,132.73,3.7668]
[1725464913891,0.05678594,132.74,132.72,0.05649703]
[1725464914690,3.82348594,132.74,132.72,0.05649703]
[1725464915392,0.05678594,132.74,132.72,0.05649703]
[1725464917092,3.7668,132.73,132.72,0.05649703]
[1725464917388,0.05678594,132.74,132.72,0.05649703]
[1725464917591,0.05678594,132.74,132.72,3.82349703]
[1725464918295,0.05678594,132.74,132.73,3.7668]
[1725464919287,7.58917873,132.79,132.76,3.7657]
[1725464919492,3.7653,132.79,132.76,3.7657]
[1725464919685,3.81405931,132.79,132.73,1.9216]
[1725464919881,3.7656,132.78,132.75,3.7661]
[1725464920082,3.7413352,132.79,132.73,1.9216]
[1725464920295,0.05331801,132.77,132.75,0.0515187]
[1725464920496,7.54192534,132.77,132.75,0.0556124]
[1725464920695,3.82244505,132.77,132.75,0.0556124]
[1725464920889,7.54465927,132.77,132.75,0.0556124]
[1725464921191,3.77875927,132.77,132.75,0.0556124]
[1725464921397,0.05654505,132.77,132.75,0.0556124]
[1725464921589,3.79797507,132.77,132.76,3.766]
[1725464921790,0.05654505,132.77,132.76,3.766]
[1725464922290,26.03,132.85,132.79,3.7648]
[1725464922494,3.78957878,132.86,132.74,26.03]
[1725464922797,26.03,132.87,132.74,26.03]
[1725464923088,3.7643,132.82,132.74,26.03]